fUST/lending_fUST_20250421
["ID","MTS","AMOUNT","RATE_DAILY","PERIOD"]
[358527165,1745235039883,-293880.495895,0.00025588,2]
[358527167,1745235039894,-2519.67701555,0.00025588,2]
[358527169,1745235039905,-153.0,0.00025592,2]
[358527172,1745235039916,-153.0,0.00025592,2]
[358527175,1745235039927,-153.0,0.00025592,2]
[358527176,1745235039939,-153.0,0.00025592,2]
[358527177,1745235039949,-153.0,0.00025593,2]
[358527178,1745235039959,-153.0,0.00025593,2]
[358527179,1745235039969,-153.0,0.00025593,2]
[358527180,1745235039978,-153.0,0.00025593,2]
[358527181,1745235039988,-153.0,0.00025593,2]
[358527182,1745235039997,-153.0,0.00025593,2]
[358527183,1745235040008,-153.0,0.00025593,2]
[358527184,1745235040017,-153.0,0.00025597,2]
[358527185,1745235040028,-153.0,0.00025598,2]
[358527186,1745235040039,-153.0,0.00025598,2]
[358527187,1745235040050,-900.0,0.0002566,2]
[358527189,1745235040062,-200.0,0.000258,2]
[358527191,1745235040074,-258.0,0.00025898,7]
[358527194,1745235040085,-162.32983011,0.00025927,2]
[358527197,1745235040096,-517.41566205,0.00026,2]
[358527198,1745235040107,-19900.0,0.00026,2]
[358527200,1745235040118,-7757.0,0.00026,2]
[358527202,1745235040128,-500.0,0.00026027,2]
[358527204,1745235040137,-3794.09769259,0.00026348,6]
[358527206,1745235040147,-204.0,0.000266,2]
[358527208,1745235040157,-1152.0,0.00026688,2]
[358527210,1745235040167,-162.32983011,0.00026749,2]
[358527211,1745235040177,-265.85642887,0.00026773,2]
[358527213,1745235040187,-200.0,0.000268,2]
[358527215,1745235040197,-102300.60532907,0.000268,4]
[358527217,1745235040207,-204.0,0.00027,2]
[358527219,1745235040218,-154.0,0.00027,2]
[358527221,1745235040229,-312.84021666,0.00027,3]
[358527222,1745235040240,-312.84021666,0.00027,3]
[358527224,1745235040250,-3657.21139561,0.00027,2]
[358527226,1745235040260,-339.40491329,0.00027,2]
[358527228,1745235040269,-249.0,0.00027,2]
[358527230,1745235040280,-1152.0,0.00027211,2]
[358527232,1745235040290,-3794.09769259,0.00027279,7]
[358527233,1745235040301,-1200.0,0.00027304,2]
[358527235,1745235040311,-1000.0,0.00027397,5]
[358527237,1745235040321,-1000.0,0.00027397,5]
[358527239,1745235040331,-1000.0,0.00027397,5]
[358527241,1745235040342,-1000.0,0.00027397,5]
[358527243,1745235040352,-1000.0,0.00027397,5]
[358527244,1745235040362,-359.91214918,0.00027397,5]
[358527246,1745235040373,-500.0,0.00027397,14]
[358527248,1745235040384,-500.0,0.00027397,14]
[358527250,1745235040394,-500.0,0.00027397,14]
[358527252,1745235040405,-500.0,0.00027397,14]
[358527254,1745235040415,-500.0,0.00027397,14]
[358527256,1745235040428,-500.0,0.00027397,14]
[358527257,1745235040438,-500.0,0.00027397,14]
[358527259,1745235040448,-500.0,0.00027397,14]
[358527261,1745235040459,-500.0,0.00027397,14]
[358527264,1745235040474,-500.0,0.00027397,14]
[358527266,1745235040484,-497.42075146,0.00027397,14]
[358527268,1745235040495,-483.0,0.00027397,2]
[358527269,1745235040505,-10000.0,0.00027397,2]
[358527271,1745235040516,-10000.0,0.00027397,3]
[358527273,1745235040527,-10000.0,0.00027397,4]
[358527275,1745235040538,-10000.0,0.00027397,5]
[358527277,1745235040548,-10000.0,0.00027397,6]
[358527279,1745235040558,-3583.25230198,0.00027397,7]
[358527281,1745235040568,-539.498953,0.00027397,120]
[358527283,1745235040578,-1034.329273,0.00027397,2]
[358527285,1745235040589,-204.0,0.000274,30]
[358527286,1745235040598,-44980.47359172,0.000275,2]
[358527288,1745235040609,-483.0,0.00027534,2]
[358527290,1745235040620,-1458.2337157,0.00027549,4]
[358527292,1745235040630,-200.0,0.0002755,7]
[358527294,1745235040640,-200.0,0.0002755,7]
[358527296,1745235040650,-200.0,0.0002755,7]
[358527298,1745235040660,-200.0,0.0002755,7]
[358527300,1745235040670,-162.32983011,0.00027571,2]
[358527302,1745235040680,-483.0,0.00027671,2]
[358527304,1745235040690,-249.0,0.00027671,2]
[358527306,1745235040700,-200.0,0.000278,2]
[358527308,1745235040710,-204.0,0.000278,30]
[358527310,1745235040720,-483.0,0.00027808,2]
[358527312,1745235040730,-559.72196481,0.00027852,5]
[358527314,1745235040740,-1000.0,0.00027852,5]
[358527315,1745235040750,-1000.0,0.00027852,5]
[358527317,1745235040760,-1000.0,0.00027852,5]
[358527319,1745235040770,-1000.0,0.00027852,5]
[358527321,1745235040781,-1000.0,0.00027852,5]
[358527336,1745235040791,-1000.0,0.00027852,5]
[358527338,1745235040954,-483.0,0.00027945,2]
[358527340,1745235040964,-250.0,0.00027945,5]
[358527342,1745235040974,-32421.38034658,0.0002799,2]
[358527344,1745235040983,-1000.0,0.00028007,5]
[358527346,1745235040992,-1000.0,0.00028007,5]
[358527347,1745235041001,-483.0,0.00028082,2]
[358527349,1745235041010,-204.0,0.000282,30]
[358527351,1745235041019,-3794.09769259,0.0002821,7]
[358527353,1745235041029,-483.0,0.00028219,2]
[358527355,1745235041038,-250.0,0.00028312,5]
[358527357,1745235041048,-483.0,0.00028356,2]
[358527358,1745235041057,-805.32897269,0.0002841,2]
[358527361,1745235041066,-483.0,0.00028493,2]
[358527363,1745235041075,-350.0,0.00028493,5]
[358527365,1745235041084,-204.0,0.000286,30]
[358527367,1745235041094,-483.0,0.0002863,2]
[358527369,1745235041103,-483.0,0.00028767,2]
[358527370,1745235041112,-1000.0,0.00028767,4]
[358527372,1745235041123,-200.0,0.000288,2]
[358527374,1745235041132,-167.00711413,0.000288,7]
[358527376,1745235041141,-356.19452708,0.000289,2]
[358527378,1745235041151,-483.0,0.00028904,2]
[358527380,1745235041161,-1500.0,0.00028948,5]
[358527382,1745235041170,-500.0,0.00028951,2]
[358527383,1745235041179,-293880.495895,0.00028952,2]
[358527385,1745235041189,-2519.67701555,0.00028952,2]
[358527387,1745235041198,-151.0,0.00028953,7]
[358527389,1745235041208,-151.0,0.00028953,7]
[358527391,1745235041217,-151.0,0.00028953,7]
[358527393,1745235041226,-5039.3540311,0.0002898,2]
[358527395,1745235041236,-505.55586505,0.00028989,2]
[358527397,1745235041245,-27716.447171,0.0002899,2]
[358527399,1745235041254,-500.0,0.00028999,2]
[358527401,1745235041263,-500.0,0.00028999,2]
[358527403,1745235041273,-926.17468584,0.00028999,5]
[358527405,1745235041282,-24386.79058734,0.00029,7]
[358527407,1745235041291,-200.0,0.00029,2]
[358527409,1745235041301,-360.06343554,0.00029,7]
[358527410,1745235041311,-360.06343554,0.00029,7]
[358527411,1745235041320,-204.0,0.00029,30]
[358527412,1745235041329,-29521.79861585,0.00029,7]
[358527413,1745235041339,-29521.79861585,0.00029,7]
[358527414,1745235041347,-19793.92077815,0.00029,7]
[358527415,1745235041356,-19793.92077815,0.00029,7]
[358527416,1745235041366,-50231.01361739,0.00029,7]
[358527417,1745235041375,-50231.01361739,0.00029,7]
[358527418,1745235041384,-18880.8094349,0.00029,7]
[358527419,1745235041393,-18880.8094349,0.00029,7]
[358527420,1745235041402,-117567.00640266,0.00029,7]
[358527421,1745235041412,-117567.00640266,0.00029,7]
[358527422,1745235041424,-780.86657426,0.00029,7]
[358527423,1745235041433,-780.86657426,0.00029,7]
[358527424,1745235041443,-151.0,0.00029,7]
[358527425,1745235041452,-151.0,0.00029,7]
[358527426,1745235041462,-151.0,0.00029,7]
[358527428,1745235041472,-151.0,0.00029,7]
[358527430,1745235041481,-151.0,0.00029,7]
[358527432,1745235041492,-151.0,0.00029,7]
[358527434,1745235041502,-151.0,0.00029,7]
[358527436,1745235041511,-151.0,0.00029,7]
[358527438,1745235041520,-151.0,0.00029,7]
[358527440,1745235041530,-151.0,0.00029,7]
[358527442,1745235041539,-151.0,0.00029,7]
[358527444,1745235041549,-151.0,0.00029,7]
[358527446,1745235041558,-151.0,0.00029,7]
[358527448,1745235041567,-151.0,0.00029,7]
[358527450,1745235041576,-151.0,0.00029,7]
[358527452,1745235041586,-151.0,0.00029,7]
[358527455,1745235041596,-200.0,0.00029,2]
[358527457,1745235041605,-179.114353,0.00029,7]
[358527459,1745235041614,-160.0,0.00029,7]
[358527461,1745235041625,-160.0,0.00029,7]
[358527463,1745235041634,-151.0,0.00029,7]
[358527465,1745235041643,-151.0,0.00029,7]
[358527467,1745235041652,-487.080976,0.00029,2]
[358527469,1745235041661,-487.080976,0.00029,2]
[358527471,1745235041670,-487.080976,0.00029,2]
[358527473,1745235041680,-487.080976,0.00029,2]
[358527475,1745235041689,-872.06200421,0.00029,2]
[358527477,1745235041698,-716.081707,0.00029,7]
[358527479,1745235041707,-716.081707,0.00029,7]
[358527481,1745235041717,-716.081707,0.00029,7]
[358527483,1745235041726,-716.081707,0.00029,7]
[358527485,1745235041735,-151.0,0.00029,7]
[358527487,1745235041744,-151.0,0.00029,7]
[358527489,1745235041753,-151.0,0.00029,7]
[358527491,1745235041763,-151.0,0.00029,7]
[358527493,1745235041771,-151.0,0.00029,7]
[358527495,1745235041780,-159.255274,0.00029,7]
[358527497,1745235041790,-151.0,0.00029,7]
[358527499,1745235041800,-151.0,0.00029,7]
[358527501,1745235041810,-483.0,0.00029041,2]
[358527503,1745235041819,-2000.0,0.00029041,120]
[358527505,1745235041828,-370.70491285,0.00029041,5]
[358527507,1745235041837,-381.0,0.00029093,2]
[358527509,1745235041846,-3794.09769259,0.00029141,8]
[358527511,1745235041856,-483.0,0.00029178,2]
[358527513,1745235041865,-483.0,0.00029315,2]
[358527515,1745235041875,-2213.81335208,0.000294,7]
[358527517,1745235041885,-483.0,0.00029452,2]
[358527519,1745235041894,-172.85226834,0.00029499,5]
[358527521,1745235041903,-250.0,0.00029521,5]
[358527523,1745235041913,-483.0,0.00029589,2]
[358527525,1745235041922,-2000.0,0.00029589,120]
[358527527,1745235041931,-483.0,0.00029726,2]
[358527529,1745235041940,-200.0,0.000298,2]
[358527531,1745235041950,-1613.0,0.00029808,2]
[358527533,1745235041959,-483.0,0.00029863,2]
[358527535,1745235041969,-269.99682,0.000299,120]
[358527537,1745235041978,-200.0,0.000299,120]
[358527539,1745235041987,-10078.7080622,0.0002999,2]
[358527541,1745235041997,-500.13796693,0.00029999,2]
[358527543,1745235042007,-500.0,0.00029999,2]
[358527545,1745235042017,-483.0,0.0003,2]
[358527547,1745235042026,-200.0,0.0003,2]
[358527549,1745235042035,-245964.59634438,0.0003,7]
[358527551,1745235042045,-200.0,0.0003,120]
[358527553,1745235042054,-200.0,0.0003,2]
[358527555,1745235042063,-200.0,0.0003,2]
[358527557,1745235042072,-178.70286678,0.0003,10]
[358527559,1745235042081,-1500.0,0.0003,30]
[358527561,1745235042091,-1000.0,0.0003,120]
[358527563,1745235042100,-309.18937058,0.0003,15]
[358527565,1745235042109,-209.80693849,0.0003,14]
[358527567,1745235042118,-412.0,0.0003,120]
[358527569,1745235042127,-383.30348559,0.0003,120]
[358527571,1745235042137,-239.706,0.0003,2]
[358527573,1745235042146,-151.0,0.0003,7]
[358527575,1745235042155,-151.0,0.0003,7]
[358527577,1745235042168,-151.0,0.0003,7]
[358527579,1745235042178,-151.0,0.0003,7]
[358527581,1745235042187,-151.0,0.0003,7]
[358527583,1745235042197,-151.0,0.0003,7]
[358527585,1745235042206,-151.0,0.0003,7]
[358527587,1745235042215,-151.0,0.0003,7]
[358527589,1745235042225,-151.0,0.0003,7]
[358527591,1745235042235,-151.0,0.0003,7]
[358527593,1745235042244,-151.0,0.0003,7]
[358527595,1745235042253,-151.0,0.0003,7]
[358527597,1745235042263,-151.0,0.0003,7]
[358527599,1745235042272,-200.0,0.0003,2]
[358527601,1745235042282,-151.0,0.0003,7]
[358527603,1745235042292,-151.0,0.0003,7]
[358527605,1745235042301,-200.0,0.0003,2]
[358527607,1745235042310,-151.0,0.0003,7]
[358527609,1745235042319,-487.080976,0.0003,2]
[358527611,1745235042329,-487.080976,0.0003,2]
[358527613,1745235042339,-268.0,0.0003,2]
[358527615,1745235042348,-716.081707,0.0003,7]
[358527617,1745235042357,-716.081707,0.0003,7]
[358527619,1745235042366,-151.0,0.0003,7]
[358527621,1745235042376,-151.0,0.0003,7]
[358527623,1745235042385,-1000.0,0.0003,2]
[358527625,1745235042394,-261.30209007,0.00030068,5]
[358527627,1745235042403,-3794.09769259,0.00030072,9]
[358527628,1745235042413,-483.0,0.00030137,2]
[358527630,1745235042424,-188.88512555,0.00030137,2]
[358527632,1745235042434,-2000.0,0.00030137,120]
[358527634,1745235042444,-483.0,0.00030274,2]
[358527636,1745235042453,-1000.0,0.00030352,5]
[358527639,1745235042462,-1000.0,0.00030352,5]
[358527641,1745235042473,-1000.0,0.00030352,5]
[358527643,1745235042483,-1017.14731367,0.00030352,5]
[358527644,1745235042494,-957.323273,0.00030352,5]
[358527646,1745235042506,-1000.0,0.00030352,5]
[358527649,1745235042516,-1000.0,0.00030352,5]
[358527651,1745235042526,-483.0,0.00030411,2]
[358527653,1745235042534,-1000.0,0.00030438,100]
[358527655,1745235042544,-250.0,0.00030521,5]
[358527657,1745235042553,-483.435436,0.00030548,2]
[358527659,1745235042563,-1800.0,0.00030592,5]
[358527661,1745235042572,-2000.0,0.00030685,120]
[358527663,1745235042581,-200.0,0.000308,5]
[358527665,1745235042590,-301.23772463,0.0003099,2]
[358527667,1745235042599,-200.0,0.00031,6]
[358527669,1745235042609,-200.0,0.00031,6]
[358527671,1745235042618,-312.84021666,0.00031,120]
[358527672,1745235042629,-200.0,0.00031,6]
[358527675,1745235042638,-200.0,0.00031,6]
[358527677,1745235042649,-200.0,0.00031,6]
[358527679,1745235042658,-3794.09769259,0.00031003,9]
[358527680,1745235042669,-1034.329273,0.0003105,2]
[358527683,1745235042679,-1000.0,0.00031052,5]
[358527685,1745235042688,-1000.0,0.00031052,5]
[358527687,1745235042698,-1000.0,0.00031052,5]
[358527689,1745235042707,-350.0,0.00031052,5]
[358527691,1745235042716,-250.0,0.00031052,5]
[358527692,1745235042725,-350.0,0.00031068,5]
[358527694,1745235042735,-2000.0,0.00031233,120]
[358527696,1745235042744,-273.765941,0.00031499,2]
[358527699,1745235042754,-500.0,0.000315,5]
[358527701,1745235042763,-151.0,0.00031507,7]
[358527703,1745235042772,-151.0,0.00031507,7]
[358527705,1745235042781,-178.327036,0.00031507,7]
[358527707,1745235042790,-1500.0,0.00031507,4]
[358527709,1745235042799,-269.99682,0.000316,120]
[358527711,1745235042809,-200.0,0.000316,120]
[358527713,1745235042818,-450.0,0.00031616,5]
[358527715,1745235042827,-805.32897269,0.00031726,2]
[358527717,1745235042837,-2000.0,0.00031781,120]
[358527719,1745235042846,-200.0,0.000318,9]
[358527721,1745235042855,-3794.09769259,0.00031934,10]
[358527723,1745235042865,-842.61541962,0.00031945,120]
[358527726,1745235042876,-539.498953,0.00031963,120]
[358527728,1745235042885,-200.0,0.00032,10]
[358527732,1745235042895,-200.0,0.00032,10]
[358527735,1745235042904,-300.0,0.00032,120]
[358527737,1745235042914,-250.45,0.00032,10]
[358527740,1745235042924,-200.0,0.00032,10]
[358527742,1745235042933,-200.0,0.00032,10]
[358527745,1745235042942,-1000.0,0.00032048,5]
[358527748,1745235042952,-550.0,0.00032164,5]
[358527751,1745235042962,-2100.0,0.00032236,5]
[358527754,1745235042971,-2000.0,0.00032329,120]
[358527757,1745235042980,-1257.64436516,0.00032596,5]
[358527762,1745235042990,-2258.0,0.00032652,3]
[358527766,1745235042999,-258.53873109,0.00032712,5]
[358527770,1745235043009,-200.0,0.000328,13]
[358527773,1745235043019,-2996.96,0.000328,7]
[358527776,1745235043029,-1000.0,0.00032802,2]
[358527779,1745235043039,-3794.09769259,0.00032866,10]
[358527782,1745235043049,-300.0,0.00032876,30]
[358527785,1745235043058,-300.0,0.00032876,30]
[358527787,1745235043067,-300.0,0.00032876,30]
[358527790,1745235043077,-300.0,0.00032876,30]
[358527793,1745235043086,-300.0,0.00032876,30]
[358527795,1745235043095,-300.0,0.00032876,30]
[358527797,1745235043105,-300.0,0.00032876,30]
[358527799,1745235043116,-300.0,0.00032876,30]
[358527801,1745235043127,-300.0,0.00032876,30]
[358527803,1745235043136,-300.0,0.00032876,30]
[358527806,1745235043146,-300.0,0.00032876,30]
[358527808,1745235043155,-300.0,0.00032876,30]
[358527810,1745235043164,-300.0,0.00032876,30]
[358527812,1745235043174,-300.0,0.00032876,30]
[358527814,1745235043184,-300.0,0.00032876,30]
[358527816,1745235043194,-300.0,0.00032876,30]
[358527818,1745235043203,-300.0,0.00032876,30]
[358527820,1745235043212,-300.0,0.00032876,30]
[358527822,1745235043222,-300.0,0.00032876,30]
[358527824,1745235043231,-340.57059734,0.00032876,30]
[358527826,1745235043240,-219.54483088,0.00032876,2]
[358527828,1745235043249,-418.31085838,0.00032876,2]
[358527830,1745235043259,-465.41980402,0.00032876,2]
[358527832,1745235043268,-427.50094558,0.00032876,2]
[358527834,1745235043277,-500.0,0.00032876,2]
[358527836,1745235043286,-500.0,0.00032876,2]
[358527838,1745235043295,-500.0,0.00032876,2]
[358527840,1745235043304,-289.469215,0.00032876,2]
[358527842,1745235043313,-357.02298774,0.00032876,2]
[358527844,1745235043323,-500.0,0.00032876,2]
[358527846,1745235043332,-500.0,0.00032876,2]
[358527848,1745235043342,-270.87461875,0.00032876,2]
[358527850,1745235043351,-500.0,0.00032876,2]
[358527852,1745235043360,-500.0,0.00032877,2]
[358527854,1745235043370,-500.0,0.00032877,2]
[358527856,1745235043379,-2000.0,0.00032877,120]
[358527858,1745235043389,-12424.06,0.000329,30]
[358527860,1745235043398,-3218.87,0.000329,30]
[358527862,1745235043407,-500.0,0.00032999,2]
[358527863,1745235043416,-200.0,0.00033,14]
[358527865,1745235043429,-200.0,0.00033,14]
[358527867,1745235043439,-166.27870699,0.00033,120]
[358527869,1745235043448,-653.91408926,0.00033,120]
[358527872,1745235043459,-93000.0,0.00033,60]
[358527873,1745235043468,-312.84021666,0.00033,30]
[358527876,1745235043477,-200.0,0.00033,14]
[358527878,1745235043486,-200.0,0.00033,14]
[358527879,1745235043495,-268.0,0.00033,2]
[358527882,1745235043506,-268.0,0.00033,2]
[358527884,1745235043516,-171.997,0.00033276,2]
[358527886,1745235043525,-190.2555,0.00033276,2]
[358527888,1745235043535,-269.99682,0.000333,120]
[358527889,1745235043544,-200.0,0.000333,120]
[358527892,1745235043553,-12424.06,0.000336,30]
[358527893,1745235043565,-3218.87,0.000336,30]
[358527897,1745235043574,-157.08990772,0.00033753,2]
[358527900,1745235043584,-450.0,0.00033792,5]
[358527902,1745235043593,-151.0,0.00033796,14]
[358527905,1745235043602,-3794.09769259,0.00033797,11]
[358527907,1745235043612,-200.0,0.000338,17]
[358527910,1745235043622,-2400.0,0.00033879,5]
[358527913,1745235043632,-200.0,0.00034,18]
[358527916,1745235043642,-200.0,0.00034,18]
[358527919,1745235043651,-300.0,0.00034,120]
[358527921,1745235043661,-199.57,0.00034,7]
[358527923,1745235043670,-200.0,0.00034,18]
[358527925,1745235043680,-200.0,0.00034,18]
[358527927,1745235043690,-160.0,0.00034,3]
[358527929,1745235043699,-160.0,0.00034,3]
[358527931,1745235043709,-2000.0,0.00034247,4]
[358527933,1745235043719,-151.0,0.00034247,14]
[358527935,1745235043728,-151.0,0.00034247,14]
[358527937,1745235043738,-215.755127,0.00034247,14]
[358527939,1745235043748,-716.081707,0.00034247,14]
[358527941,1745235043758,-716.081707,0.00034247,14]
[358527943,1745235043768,-151.0,0.00034247,14]
[358527945,1745235043777,-2000.91,0.00034299,2]
[358527947,1745235043786,-2000.91,0.00034299,2]
[358527949,1745235043796,-2000.91,0.00034299,2]
[358527951,1745235043806,-2000.91,0.00034299,2]
[358527953,1745235043815,-2000.91,0.00034299,2]
[358527955,1745235043825,-2000.91,0.00034299,2]
[358527957,1745235043834,-2000.91,0.00034299,2]
[358527959,1745235043843,-2000.91,0.00034299,2]
[358527961,1745235043853,-2000.91,0.00034299,2]
[358527963,1745235043862,-2000.91,0.00034299,2]
[358527965,1745235043873,-151.0,0.00034299,14]
[358527967,1745235043883,-151.0,0.00034299,14]
[358527969,1745235043893,-151.0,0.00034299,14]
[358527971,1745235043903,-151.0,0.00034299,14]
[358527973,1745235043914,-151.0,0.00034299,14]
[358527975,1745235043926,-151.0,0.00034299,14]
[358527977,1745235043936,-151.0,0.00034299,14]
[358527979,1745235043946,-151.0,0.00034299,14]
[358527981,1745235043956,-151.0,0.00034299,14]
[358527983,1745235043966,-151.0,0.00034299,14]
[358527985,1745235043976,-151.0,0.00034299,14]
[358527987,1745235043985,-151.0,0.00034299,14]
[358527989,1745235043995,-151.0,0.00034299,14]
[358527991,1745235044005,-487.080976,0.00034299,2]
[358527993,1745235044015,-487.080976,0.00034299,2]
[358527995,1745235044024,-12424.06,0.000343,30]
[358527997,1745235044034,-3218.87,0.000343,30]
[358527999,1745235044043,-1034.329273,0.00034703,2]
[358528001,1745235044053,-3794.09769259,0.00034728,12]
[358528003,1745235044062,-250.499999,0.000348,21]
[358528005,1745235044072,-3140.01975378,0.0003487,4]
[358528007,1745235044082,-1038.05403894,0.00034951,2]
[358528009,1745235044091,-7152.69924332,0.0003499,30]
[358528011,1745235044102,-1015.74574384,0.00035,2]
[358528013,1745235044112,-10581.52212763,0.00035,2]
[358528027,1745235044236,-500.0,0.00035,7]
[358528029,1745235044246,-96784.6241157,0.00035,2]
[358528031,1745235044256,-200.0,0.00035,22]
[358528033,1745235044266,-269.99682,0.00035,120]
[358528036,1745235044276,-200.0,0.00035,120]
[358528038,1745235044286,-397.29,0.00035,60]
[358528039,1745235044295,-202.99175,0.00035,5]
[358528041,1745235044305,-312.84021666,0.00035,30]
[358528043,1745235044314,-200.0,0.00035,22]
[358528046,1745235044324,-200.0,0.00035,22]
[358528048,1745235044335,-200.0,0.00035,22]
[358528050,1745235044344,-173.34457611,0.00035,5]
[358528052,1745235044354,-1019.85,0.00035,120]
[358528054,1745235044364,-500.0,0.00035,120]
[358528056,1745235044374,-805.32897269,0.00035042,2]
[358528058,1745235044384,-12424.06,0.000351,30]
[358528059,1745235044393,-3218.87,0.000351,30]
[358528060,1745235044403,-500.0,0.000353,5]
[358528061,1745235044413,-2786.26552735,0.00035523,5]
[358528062,1745235044425,-1008.12923335,0.00035605,5]
[358528063,1745235044436,-500.0,0.00035616,7]
[358528064,1745235044446,-500.0,0.00035616,7]
[358528065,1745235044456,-179.51409327,0.00035616,7]
[358528066,1745235044466,-500.0,0.00035616,7]
[358528067,1745235044477,-585.5328843,0.00035616,7]
[358528068,1745235044487,-3794.09769259,0.00035659,12]
[358528069,1745235044497,-12424.06,0.000357,30]
[358528071,1745235044508,-151.0,0.000357,14]
[358528073,1745235044519,-151.0,0.000357,14]
[358528075,1745235044528,-151.0,0.000357,14]
[358528077,1745235044538,-189.152907,0.000357,14]
[358528078,1745235044548,-151.0,0.000357,14]
[358528079,1745235044557,-151.0,0.000357,14]
[358528080,1745235044567,-151.0,0.000357,14]
[358528081,1745235044577,-151.0,0.000357,14]
[358528082,1745235044586,-151.0,0.000357,14]
[358528083,1745235044596,-178.991116,0.000357,14]
[358528084,1745235044606,-151.0,0.000357,14]
[358528085,1745235044616,-3162.0,0.00035767,3]
[358528086,1745235044628,-151.0,0.00035969,14]
[358528087,1745235044638,-151.0,0.00035969,14]
[358528088,1745235044647,-3000.0,0.00036,2]
[358528089,1745235044657,-784.0,0.00036,2]
[358528090,1745235044666,-1290.0,0.00036,2]
[358528091,1745235044676,-200.0,0.00036,26]
[358528092,1745235044685,-300.0,0.00036,120]
[358528093,1745235044694,-200.0,0.00036,26]
[358528094,1745235044704,-200.0,0.00036,26]
[358528095,1745235044713,-200.0,0.00036,26]
[358528096,1745235044723,-282.261904,0.00036,14]
[358528097,1745235044732,-487.080976,0.00036,2]
[358528098,1745235044742,-487.080976,0.00036,2]
[358528099,1745235044752,-268.0,0.00036,2]
[358528100,1745235044761,-268.0,0.00036,2]
[358528101,1745235044771,-268.0,0.00036,2]
[358528102,1745235044781,-716.081707,0.00036,14]
[358528103,1745235044791,-716.081707,0.00036,14]
[358528104,1745235044801,-151.0,0.00036,14]
[358528106,1745235044810,-201.93901464,0.0003621,2]
[358528108,1745235044819,-262.6646804,0.0003624,2]
[358528110,1745235044829,-539.498953,0.0003653,120]
[358528111,1745235044839,-550.0,0.00036532,5]
[358528113,1745235044848,-189.82551889,0.00036532,5]
[358528115,1745235044858,-3794.09769259,0.0003659,13]
[358528117,1745235044867,-269.99682,0.000367,120]
[358528119,1745235044877,-200.0,0.000367,120]
[358528122,1745235044887,-5782.81952145,0.00036898,120]
[358528124,1745235044896,-151.0,0.00036898,14]
[358528126,1745235044906,-151.0,0.00036898,14]
[358528127,1745235044917,-2500.0,0.00036986,4]
[358528129,1745235044928,-200.0,0.00037,30]
[358528131,1745235044938,-200.0,0.00037,30]
[358528133,1745235044947,-200.0,0.00037,30]
[358528135,1745235044957,-200.0,0.00037,30]
[358528137,1745235044966,-239.706,0.00037153,5]
[358528139,1745235044975,-202.99175,0.00037153,5]
[358528141,1745235044987,-3794.09769259,0.00037521,13]
[358528144,1745235044996,-1006.84390552,0.000378,2]
[358528145,1745235045005,-1269.87277241,0.00037827,59]
[358528148,1745235045016,-1500.0,0.00037871,5]